bitfinex-derivatives/quotes_BNBF0:USTF0_20250101
["timestamp","ask_amount","ask_price","bid_price","bid_amount"]
[1735697813751,0.25921789,710.82,709.29,1.03572275]
[1735697814057,0.25921789,710.81,709.29,1.03572275]
[1735697814354,1.47042254,710.97,709.29,1.03572275]
[1735697814557,1.47042254,710.97,709.09,0.28205164]
[1735697814558,0.25920324,710.8,709.36,1.03572275]
[1735697814855,0.25920823,710.79,709.36,1.03572275]
[1735697815053,0.25920823,710.78,709.36,1.03572275]
[1735697815260,0.25920823,710.77,709.36,1.03572275]
[1735697815452,0.25920823,710.76,709.36,1.03572275]
[1735697815656,0.25920823,710.75,709.36,1.03572275]
[1735697815857,1.47042254,710.97,709.53,1.03572275]
[1735697815858,0.25920823,710.74,709.53,1.03572275]
[1735697816058,0.25920823,710.73,709.53,1.03572275]
[1735697816258,0.25920823,710.72,709.53,1.03572275]
[1735697816553,0.25920823,710.71,709.53,1.03572275]
[1735697816759,0.25920823,710.7,709.65,1.03572275]
[1735697816949,0.25920823,710.69,709.65,1.03572275]
[1735697817150,0.25920823,710.68,709.65,1.03572275]
[1735697817351,0.25920823,710.67,709.65,1.03572275]
[1735697817558,0.25920823,710.66,709.65,1.03572275]
[1735697817758,1.47042254,710.97,709.76,1.03572275]
[1735697818059,0.25921401,710.96,709.76,1.03572275]
[1735697818261,0.25921401,710.95,709.76,1.03572275]
[1735697818456,0.25921401,710.94,709.76,1.03572275]
[1735697818658,0.25921401,710.93,710.0,1.03572275]
[1735697818853,0.25921401,710.92,710.0,1.03572275]
[1735697819054,0.25921401,710.91,710.0,1.03572275]
[1735697819259,0.25921401,710.9,710.0,1.03572275]
[1735697819556,0.25921401,710.89,710.01,1.03572275]
[1735697819856,0.25921401,710.88,710.01,1.03572275]
[1735697820054,0.25921401,710.87,710.01,1.03572275]
[1735697820260,0.25921401,710.86,710.01,1.03572275]
[1735697820563,0.25921401,710.85,710.03,1.03572275]
[1735697820758,0.25921401,710.84,710.03,1.03572275]
[1735697820960,0.25921401,710.83,710.03,1.03572275]
[1735697821157,0.25921401,710.82,710.03,1.03572275]
[1735697821357,0.25921401,710.81,710.03,1.03572275]
[1735697821560,0.25921401,710.8,710.03,1.03572275]
[1735697821761,0.25921401,710.8,709.4,2.93450703]
[1735697821762,0.25920235,710.79,710.02,1.03572275]
[1735697821962,0.25920235,710.78,710.02,1.03572275]
[1735697822164,0.25920235,710.77,710.02,1.03572275]
[1735697822362,1.46982736,710.84,710.02,1.03572275]
[1735697822363,0.25920235,710.76,710.02,1.03572275]
[1735697822563,0.25920235,710.75,710.02,1.03572275]
[1735697822863,0.25920235,710.74,710.03,1.03572275]
[1735697823163,0.25920235,710.73,710.03,1.03572275]
[1735697823365,0.25920235,710.72,710.03,1.03572275]
[1735697823560,0.25920235,710.71,710.03,1.03572275]
[1735697823763,0.25920235,710.7,710.03,1.03572275]
[1735697823962,0.25920235,710.69,710.03,1.03572275]
[1735697824163,0.25920235,710.68,710.03,1.03572275]
[1735697824364,0.25916585,710.67,710.03,1.03572275]
[1735697824561,0.25916585,710.66,710.03,1.03572275]
[1735697824762,0.25916585,710.65,710.03,1.03572275]
[1735697825063,0.25916623,710.64,710.03,1.03572275]
[1735697825265,0.25916623,710.63,710.03,1.03572275]
[1735697825467,0.25916623,710.62,710.03,1.03572275]
[1735697825763,0.25916623,710.61,710.03,1.03572275]
[1735697825967,0.25916623,710.6,710.03,1.03572275]
[1735697826163,0.25916623,710.59,709.97,1.03572275]
[1735697826360,0.25916623,710.58,709.97,1.03572275]
[1735697826566,0.25916623,710.57,709.97,1.03572275]
[1735697826761,1.46982736,710.84,709.97,1.03572275]
[1735697826967,0.28129395,711.0,710.01,1.03572275]
[1735697827268,1.46976011,710.93,710.01,1.03572275]
[1735697827467,0.25914385,710.92,710.01,1.03572275]
[1735697828168,0.25914385,710.92,710.07,1.03572275]
[1735697828968,0.25914385,710.91,710.07,1.03572275]
[1735697829271,0.25914385,710.9,710.05,1.03572275]
[1735697829464,0.25914385,710.89,710.05,1.03572275]
[1735697829664,0.25912669,710.88,710.05,1.03572275]
[1735697829867,0.25912669,710.87,710.05,1.03572275]
[1735697830072,0.25912669,710.86,710.05,1.03572275]
[1735697830271,0.25912669,710.85,710.05,1.03572275]
[1735697830467,0.25912669,710.84,710.08,1.03572275]
[1735697830770,0.25912669,710.83,710.08,1.03572275]
[1735697830964,0.25912669,710.82,710.08,1.03572275]
[1735697831169,0.25912669,710.81,710.08,1.03572275]
[1735697831369,0.25912669,710.8,710.08,1.03572275]
[1735697831571,0.25912669,710.79,710.07,1.03572275]
[1735697831770,0.25912669,710.78,710.07,1.03572275]
[1735697831970,0.25912669,710.77,710.07,1.03572275]
[1735697832169,0.28129395,711.0,710.07,1.03572275]
[1735697832366,0.25914186,710.99,710.07,1.03572275]
[1735697832574,0.25914186,710.99,709.46,0.779001]
[1735697832575,0.25914186,710.98,710.02,1.03572275]
[1735697832869,0.28129395,711.0,710.02,1.03572275]
[1735697832870,0.25914186,710.97,710.02,1.03572275]
[1735697833065,0.25914186,710.96,710.02,1.03572275]
[1735697833274,0.25914186,710.95,710.02,1.03572275]
[1735697833470,0.25914186,710.94,710.02,1.03572275]
[1735697833672,0.25914186,710.93,709.96,1.03572275]
[1735697833872,0.25914186,710.92,709.96,1.03572275]
[1735697834171,0.25914186,710.91,709.96,1.03572275]
[1735697834373,0.25914186,710.9,709.96,1.03572275]
[1735697834572,0.25914186,710.89,709.95,1.03572275]
[1735697834872,0.25914186,710.88,709.95,1.03572275]
[1735697835071,0.25914186,710.87,709.95,1.03572275]
[1735697835272,0.25914186,710.86,709.95,1.03572275]
[1735697835466,0.25914186,710.85,709.95,1.03572275]
[1735697835667,0.28129395,711.0,709.67,1.03572275]
[1735697836572,0.28129395,711.0,709.56,1.03572275]
[1735697837671,0.28129395,711.0,709.49,1.03572275]
[1735697838873,0.28129395,711.0,709.45,1.03572275]
[1735697840271,0.25920032,710.99,709.45,1.03572275]
[1735697840871,0.25921627,710.98,709.45,1.03572275]
[1735697841073,0.25921627,710.97,709.45,1.03572275]
[1735697841272,0.25921627,710.96,709.58,1.03572275]
[1735697841568,0.28129395,711.0,709.58,1.03572275]
[1735697841569,0.25921627,710.95,709.58,1.03572275]
[1735697841773,0.25921627,710.94,709.58,1.03572275]
[1735697841973,0.25921627,710.93,709.58,1.03572275]
[1735697842173,0.25921627,710.92,709.58,1.03572275]
[1735697842374,0.25921627,710.91,709.58,1.03572275]
[1735697842575,0.25921627,710.9,709.58,1.03572275]
[1735697842774,1.47015853,710.95,709.1,0.78462353]
[1735697842775,0.25920915,710.89,709.49,1.03572275]
[1735697842976,0.25920915,710.88,709.49,1.03572275]
[1735697843173,1.47015853,710.95,709.49,1.03572275]
[1735697843174,0.25920915,710.87,709.49,1.03572275]
[1735697843374,0.25920915,710.86,709.49,1.03572275]
[1735697843569,0.25920915,710.85,709.49,1.03572275]
[1735697843782,0.25920915,710.84,709.51,1.03572275]
[1735697843981,0.25920915,710.83,709.51,1.03572275]
[1735697844176,0.25920915,710.82,709.51,1.03572275]
[1735697844369,0.25920915,710.81,709.51,1.03572275]
[1735697844569,0.25920915,710.8,709.47,1.03572275]
[1735697844773,0.25920915,710.79,709.47,1.03572275]
[1735697844976,0.25920915,710.78,709.47,1.03572275]
[1735697845271,1.47015853,710.95,709.47,1.03572275]
[1735697845471,0.25921622,710.94,709.47,1.03572275]
[1735697845677,0.25921622,710.94,709.48,1.03572275]
[1735697846671,0.25921622,710.94,709.49,1.03572275]
[1735697847478,0.25921622,710.94,709.47,1.03572275]
[1735697847874,0.25923449,710.93,709.47,1.03572275]
[1735697848077,0.25923449,710.92,709.47,1.03572275]
[1735697848278,1.47015853,710.95,709.44,1.03572275]
[1735697848279,0.25923449,710.91,709.44,1.03572275]
[1735697848573,1.47015853,710.95,709.44,1.03572275]
[1735697848574,0.25924207,710.9,709.44,1.03572275]
[1735697848778,0.25924207,710.89,709.44,1.03572275]
[1735697848974,0.25924207,710.88,709.44,1.03572275]
[1735697849173,0.25924207,710.87,709.43,1.03572275]
[1735697849378,0.25924207,710.86,709.43,1.03572275]
[1735697849576,0.25924207,710.85,709.43,1.03572275]
[1735697849883,0.25924207,710.84,709.43,1.03572275]
[1735697850079,0.25924207,710.83,709.43,1.03572275]
[1735697850281,0.25924207,710.82,709.51,1.03572275]
[1735697850480,1.47015853,710.95,709.51,1.03572275]
[1735697850680,0.25923068,710.94,709.51,1.03572275]
[1735697851682,0.25923068,710.94,709.49,1.03572275]
[1735697852886,0.25923068,710.94,709.46,1.03572275]
[1735697853291,0.25924992,710.93,709.46,1.03572275]
[1735697853482,0.25924992,710.92,709.45,1.03572275]
[1735697853684,0.25924992,710.91,709.45,1.03572275]
[1735697853886,0.25924992,710.9,709.45,1.03572275]
[1735697854081,0.54058739,710.89,709.45,1.03572275]
[1735697854282,0.54059135,710.88,709.45,1.03572275]
[1735697854489,0.54059326,710.87,709.45,1.03572275]
[1735697854687,0.54059722,710.86,709.45,1.03572275]
[1735697854888,0.54060117,710.85,709.45,1.03572275]
[1735697855085,0.25924787,710.84,709.45,1.03572275]
[1735697855387,0.54060513,710.84,709.44,1.03572275]
[1735697855589,0.54060909,710.83,709.44,1.03572275]
[1735697855787,0.54061092,710.82,709.44,1.03572275]
[1735697855980,0.25924574,710.81,709.44,1.03572275]
[1735697856185,0.54061488,710.81,709.44,1.03572275]
[1735697856381,0.25924574,710.8,709.44,1.03572275]
[1735697856587,0.54062645,710.79,709.42,1.03572275]
[1735697856887,0.54063041,710.78,709.42,1.03572275]
[1735697857182,0.2592494,710.77,709.42,1.03572275]
[1735697857789,0.2592494,710.77,709.41,1.03572275]
[1735697858686,0.28138101,710.78,709.38,1.03572275]
[1735697858687,0.25924813,710.76,709.38,1.03572275]
[1735697858990,0.25924813,710.75,709.38,1.03572275]
[1735697859190,0.25924813,710.74,709.38,1.03572275]
[1735697859387,0.25924813,710.73,709.38,1.03572275]
[1735697859593,0.25924813,710.72,709.38,1.03572275]
[1735697859795,0.25924813,710.71,709.42,1.03572275]
[1735697859990,0.25924813,710.7,709.42,1.03572275]
[1735697860191,0.25924813,710.69,709.42,1.03572275]
[1735697860394,0.25924813,710.68,709.42,1.03572275]
[1735697860693,0.25924813,710.67,709.42,1.03572275]
[1735697860894,0.25924813,710.66,709.42,1.03572275]
[1735697861090,0.28138101,710.78,709.43,1.03572275]
[1735697861091,0.25924813,710.77,709.43,1.03572275]
[1735697861295,0.25924255,710.65,709.43,1.03572275]
[1735697861494,0.25924255,710.64,709.43,1.03572275]
[1735697861689,0.25924255,710.63,709.43,1.03572275]
[1735697861894,0.25924255,710.62,709.43,1.03572275]
[1735697862097,0.25924255,710.61,709.43,1.03572275]
[1735697862395,0.25924255,710.6,709.43,1.03572275]
[1735697862594,0.25924255,710.59,709.43,1.03572275]
[1735697862795,0.25924255,710.58,709.43,1.03572275]
[1735697862997,0.25924255,710.57,709.43,1.03572275]
[1735697863194,0.25924255,710.56,709.47,1.03572275]
[1735697863396,0.25924255,710.55,709.47,1.03572275]
[1735697863594,0.25924255,710.54,709.47,1.03572275]
[1735697863791,0.25924255,710.77,709.47,1.03572275]
[1735697863990,0.25924255,710.76,709.47,1.03572275]
[1735697864198,0.25924255,710.75,709.49,1.03572275]
[1735697864393,0.25924255,710.74,709.49,1.03572275]
[1735697864593,0.25924255,710.73,709.49,1.03572275]
[1735697864795,0.25924255,710.72,709.49,1.03572275]
[1735697864997,0.25924255,710.71,709.49,1.03572275]
[1735697865193,0.25924255,710.71,709.14,1.05575805]
[1735697865194,0.25924255,710.7,709.5,1.03572275]
[1735697866194,0.25924255,710.7,709.54,1.03572275]
[1735697866598,1.47028793,710.71,709.54,1.03572275]
[1735697866599,0.25923324,710.69,709.54,1.03572275]
[1735697866798,0.25923324,710.68,709.54,1.03572275]
[1735697866994,0.25923324,710.67,709.54,1.03572275]
[1735697867194,0.25923324,710.66,709.54,1.03572275]
[1735697867494,0.25923324,710.65,709.55,1.03572275]
[1735697867692,0.25923324,710.64,709.55,1.03572275]
[1735697867897,0.25923324,710.63,709.55,1.03572275]
[1735697868100,0.25923324,710.62,709.55,1.03572275]
[1735697868299,0.25923324,710.61,709.58,1.03572275]
[1735697868499,0.25923324,710.6,709.58,1.03572275]
[1735697868702,0.25923324,710.59,709.58,1.03572275]
[1735697868907,0.25923324,710.58,709.58,1.03572275]
[1735697869102,1.47028793,710.71,709.58,1.03572275]
[1735697869302,1.47028793,710.71,709.1,0.78381293]
[1735697869303,0.25922264,710.7,709.61,1.03572275]
[1735697870502,0.25922264,710.69,709.66,1.03572275]
[1735697870702,0.25922264,710.68,709.66,1.03572275]
[1735697870901,0.25922264,710.67,709.66,1.03572275]
[1735697871098,0.25922264,710.66,709.66,1.03572275]
[1735697871297,0.25922264,710.65,709.66,1.03572275]
[1735697871501,0.25922264,710.64,709.74,1.03572275]
[1735697871696,0.25922264,710.63,709.74,1.03572275]
[1735697871900,0.25920977,710.62,709.74,1.03572275]
[1735697872102,0.25920977,710.61,709.74,1.03572275]
[1735697872298,0.25920977,710.6,709.74,1.03572275]
[1735697872500,0.25920977,710.71,709.74,1.03572275]
[1735697872704,0.25920977,710.7,709.74,1.03572275]
[1735697873001,0.25920977,710.69,709.78,1.03572275]
[1735697873205,0.25920977,710.68,709.78,1.03572275]
[1735697873397,0.25920977,710.67,709.78,1.03572275]
[1735697873602,0.25920977,710.66,709.78,1.03572275]
[1735697873799,0.25920977,710.65,709.78,1.03572275]
[1735697873999,0.25920977,710.64,709.78,1.03572275]
[1735697874199,0.25920977,710.64,709.22,2.15550603]
[1735697874200,0.25920977,710.63,709.8,1.03572275]
[1735697874399,0.25920977,710.62,709.8,1.03572275]
[1735697874600,0.25922837,710.61,709.8,1.03572275]
[1735697874798,0.25922837,710.6,709.8,1.03572275]
[1735697875006,0.25922837,710.59,709.8,1.03572275]
[1735697875206,1.47023099,710.72,709.76,1.03572275]
[1735697875207,0.25922837,710.58,709.76,1.03572275]
[1735697875403,0.25922837,710.57,709.76,1.03572275]
[1735697875604,0.25922837,710.56,709.76,1.03572275]
[1735697875805,0.25922837,710.55,709.76,1.03572275]
[1735697876007,0.25922837,710.54,709.76,1.03572275]
[1735697876309,0.25922837,710.53,709.76,1.03572275]
[1735697876608,0.25922837,710.52,709.65,1.03572275]
[1735697876810,0.25922837,710.51,709.65,1.03572275]
[1735697877007,1.47023099,710.72,709.65,1.03572275]
[1735697877310,0.2592446,710.71,709.66,1.03572275]
[1735697878206,0.2592446,710.71,709.64,1.03572275]
[1735697879010,0.2592446,710.71,709.67,1.03572275]
[1735697879811,0.2592448,710.7,709.67,1.03572275]
[1735697880014,0.2592448,710.69,709.66,1.03572275]
[1735697880209,0.2592448,710.68,709.66,1.03572275]
[1735697880406,0.2592448,710.67,709.66,1.03572275]
[1735697880609,0.25924604,710.66,709.66,1.03572275]
[1735697880809,0.25924604,710.65,709.66,1.03572275]
[1735697881007,1.47023099,710.72,709.66,1.03572275]
[1735697881008,0.25924604,710.64,709.66,1.03572275]
[1735697881207,0.25924604,710.63,709.66,1.03572275]
[1735697881405,0.25924604,710.62,709.66,1.03572275]
[1735697881811,0.25924471,710.61,709.66,1.03572275]
[1735697882013,0.25924471,710.6,709.66,1.03572275]
[1735697882212,0.25924471,710.59,709.66,1.03572275]
[1735697882411,0.25924471,710.58,709.66,1.03572275]
[1735697882612,0.25924471,710.57,709.66,1.03572275]
[1735697882911,0.25924471,710.56,709.66,1.03572275]
[1735697883111,0.25924471,710.55,709.66,1.03572275]
[1735697883316,0.25924471,710.54,709.66,1.03572275]
[1735697883612,0.25924471,710.53,709.66,1.03572275]
[1735697883807,0.25924471,710.52,709.66,1.03572275]
[1735697884012,0.25924471,710.51,709.66,1.03572275]
[1735697884207,1.47032417,710.63,709.66,1.03572275]
[1735697884415,0.25924495,710.62,709.66,1.03572275]
[1735697885512,0.25924495,710.62,709.72,1.03572275]
[1735697886715,0.25924495,710.62,709.7,1.03572275]
[1735697887621,0.25924495,710.62,709.71,1.03572275]
[1735697888215,0.25927331,710.61,709.71,1.03572275]
[1735697888519,1.47032417,710.63,709.71,1.03572275]
[1735697888520,0.25927331,710.6,709.71,1.03572275]
[1735697888717,0.25927331,710.59,709.71,1.03572275]
[1735697888917,0.25927331,710.58,709.71,1.03572275]
[1735697889117,0.25927331,710.57,709.71,1.03572275]
[1735697889420,0.25927331,710.56,709.71,1.03572275]
[1735697889719,0.28138101,710.78,709.45,1.03572275]
[1735697889911,0.25919876,710.77,709.46,0.28190454]
[1735697890918,0.25919876,710.77,709.72,1.03572275]
[1735697892019,0.25919876,710.77,709.7,1.03572275]
[1735697892417,0.25918918,710.76,709.7,1.03572275]
[1735697892613,0.25918918,710.75,709.69,1.03572275]
[1735697892817,0.28138101,710.78,709.69,1.03572275]
[1735697893018,0.25919029,710.77,709.69,1.03572275]
[1735697893721,0.25919029,710.77,709.46,0.28190454]
[1735697893722,0.25919029,710.77,709.68,1.03572275]
[1735697894624,0.25919029,710.77,709.67,1.03572275]
[1735697895021,0.25918976,710.76,709.67,1.03572275]
[1735697895219,0.25918976,710.75,709.67,1.03572275]
[1735697895420,0.25918976,710.74,709.67,1.03572275]
[1735697895621,0.28138101,710.78,709.67,1.03572275]
[1735697897925,0.28138101,710.78,709.68,1.03572275]
[1735697899026,0.28138101,710.78,709.46,0.28190454]
[1735697899027,0.28138101,710.78,709.65,1.03572275]
[1735697899424,0.25917953,710.77,709.65,1.03572275]
[1735697899824,0.28138101,710.78,709.65,1.03572275]
[1735697900024,0.25920176,710.77,709.67,1.03572275]
[1735697900894,0.25920176,710.77,709.55,1.03572275]
[1735697901148,0.28138101,710.78,709.55,1.03572275]
[1735697901323,1.46979115,711.14,709.57,0.28186084]
[1735697901532,0.25908527,711.13,709.57,0.28186084]
[1735697902128,0.25908527,711.13,709.91,1.03572275]
[1735697902929,1.46979115,711.14,709.91,1.03572275]
[1735697903125,0.25907938,711.13,709.91,1.03572275]
[1735697903726,0.25907938,711.13,709.9,1.03572275]
[1735697904830,0.25907938,711.13,709.79,1.03572275]
[1735697905730,0.25907884,711.12,709.79,1.03572275]
[1735697905932,0.25907884,711.11,709.79,1.03572275]
[1735697906132,0.25907884,711.1,709.74,1.03572275]
[1735697906334,0.25907884,711.09,709.75,0.28178936]
[1735697906526,0.25907884,711.08,709.75,0.28178936]
[1735697906729,0.25907884,711.07,709.75,0.28178936]
[1735697906927,0.25907884,711.06,709.75,0.28178936]
[1735697907131,0.25907884,711.05,709.75,0.28178936]
[1735697907432,0.25907884,711.04,709.75,0.28178936]
[1735697907628,0.25907884,711.03,709.75,0.28178936]
[1735697907826,0.25907884,711.02,709.75,0.28178936]
[1735697908027,0.25907884,711.01,709.75,0.28178936]
[1735697908231,1.46979115,711.14,709.75,0.28178936]
[1735697908432,0.25908037,711.13,709.75,0.28178936]
[1735697911735,0.25904528,711.12,709.75,0.28178936]
[1735697911932,0.25904528,711.13,709.84,1.03572275]
[1735697912130,0.25904528,711.12,709.84,1.03572275]
[1735697912434,0.25904528,711.11,709.84,1.03572275]
[1735697912633,0.25904528,711.1,709.84,1.03572275]
[1735697912834,0.25904528,711.09,709.83,1.03572275]
[1735697913033,0.25904528,711.08,709.83,1.03572275]
[1735697913235,0.25904528,711.07,709.83,1.03572275]
[1735697913435,0.25904528,711.06,709.83,1.03572275]
[1735697913632,1.46979115,711.14,709.83,1.03572275]
[1735697913633,0.25904528,711.13,709.83,1.03572275]
[1735697913833,0.25904528,711.12,709.81,1.03572275]
[1735697914029,0.25904528,711.11,709.81,1.03572275]
[1735697914229,0.25904528,711.1,709.81,1.03572275]
[1735697914436,0.25904528,711.09,709.81,1.03572275]
[1735697914630,0.25904528,711.08,709.81,1.03572275]
[1735697914934,0.25904528,711.07,709.81,1.03572275]
[1735697915138,0.25904528,711.06,709.81,1.03572275]
[1735697915332,0.25904528,711.05,709.81,1.03572275]
[1735697915536,0.25904528,711.04,709.81,1.03572275]
[1735697915838,0.25904528,711.03,709.81,1.03572275]
[1735697916038,0.25904528,711.02,709.82,0.28176157]
[1735697916231,0.25904488,711.01,709.82,0.28176157]
[1735697916435,0.25904488,711.0,709.82,0.28176157]
[1735697916637,1.46979115,711.14,709.82,0.28176157]
[1735697916835,0.25904488,711.13,709.82,0.28176157]
[1735697919537,1.46979115,711.14,709.82,0.28176157]
[1735697919737,0.25903924,711.13,709.82,0.28176157]
[1735697921641,0.2590384,711.12,709.82,0.28176157]
[1735697921840,0.2590384,711.11,709.82,0.28176157]
[1735697922040,0.64109932,712.01,709.82,0.28176157]
[1735697922243,2.55157206,712.02,709.82,0.28176157]
[1735697922244,1.46935156,711.27,709.82,1.31748432]
[1735697922540,0.25901836,711.26,709.82,1.31748432]
[1735697922741,0.25901836,711.25,709.82,1.31748432]
[1735697922942,0.25901836,711.24,709.82,1.31748432]
[1735697923243,0.25901836,711.23,709.82,1.31748432]
[1735697923448,0.25901836,711.22,709.89,1.03572275]
[1735697923741,0.25901836,711.21,709.9,0.28172982]
[1735697923939,0.25901836,711.2,709.9,0.28172982]
[1735697924140,1.46922233,711.31,709.9,0.28172982]
[1735697924341,0.25900324,711.3,709.9,0.28172982]
[1735697924541,0.25900324,711.3,709.92,1.03572275]
[1735697925142,0.25900324,711.3,709.93,0.28171791]
[1735697925343,0.25900324,711.3,709.96,1.03572275]
[1735697925542,0.25900324,711.3,709.97,0.28170204]
[1735697926641,0.25900324,711.3,709.97,1.31742479]
[1735697926945,0.25900219,711.29,709.97,1.31742479]
[1735697927140,0.25900219,711.28,709.97,1.31742479]
[1735697927346,0.25900219,711.27,709.97,1.31742479]
[1735697927545,0.25900236,711.26,709.99,1.03572275]
[1735697927745,0.25900236,711.25,709.99,1.03572275]
[1735697927945,1.46922233,711.31,709.99,1.31741685]
[1735697927946,0.25900236,711.24,709.99,1.31741685]
[1735697928145,0.25900236,711.23,709.99,1.31741685]
[1735697928347,0.25900236,711.22,709.99,1.31741685]
[1735697928547,0.25900236,711.21,710.0,1.31741289]
[1735697928849,0.25900236,711.2,710.01,0.28168617]
[1735697929050,0.25900236,711.19,710.01,0.28168617]
[1735697929247,0.25900236,711.18,710.01,0.28168617]
[1735697929443,1.46922233,711.31,710.01,0.28168617]
[1735697929645,0.25899955,711.3,710.03,1.03572275]
[1735697931150,0.25899955,711.3,710.06,1.03572275]
[1735697931952,0.25899955,711.3,710.03,1.03572275]
[1735697932152,0.25901955,711.29,710.03,1.03572275]
[1735697932348,0.25901955,711.28,710.03,1.03572275]
[1735697932547,0.25901955,711.27,710.03,1.03572275]
[1735697932750,0.25901955,711.26,710.03,1.03572275]
[1735697932945,0.25901955,711.25,710.03,1.03572275]
[1735697933149,0.25901955,711.24,710.03,1.03572275]
[1735697933350,0.25901955,711.23,710.03,1.03572275]
[1735697933549,0.25901955,711.22,710.03,1.03572275]
[1735697933747,0.25901955,711.21,710.09,1.03572275]
[1735697933945,1.46922233,711.31,710.09,1.03572275]
[1735697933946,0.25901955,711.2,710.09,1.03572275]
[1735697934153,0.25901955,711.19,710.09,1.03572275]
[1735697934448,0.25901955,711.18,710.09,1.03572275]
[1735697934647,0.25901955,711.3,710.09,1.03572275]
[1735697934852,0.25901955,711.29,710.09,1.03572275]
[1735697935052,0.25901955,711.28,710.09,1.03572275]
[1735697935250,0.25901955,711.27,710.09,1.03572275]
[1735697935446,1.46922233,711.31,710.09,1.03572275]
[1735697935646,0.25900996,711.3,710.09,1.03572275]
[1735697935853,0.25900996,711.3,710.16,1.03572275]
[1735697936651,0.25900996,711.3,710.23,1.03572275]
[1735697937449,1.46922233,711.31,710.23,1.03572275]
[1735697937651,0.25898912,711.3,710.23,1.03572275]
[1735697938250,1.05834082,712.01,710.23,1.03572275]
[1735697938447,1.46880375,711.49,710.23,1.03572275]
[1735697938651,0.25894274,711.48,710.23,1.03572275]
[1735697939047,0.25894274,711.47,710.23,1.03572275]
[1735697939353,0.25894274,711.46,710.23,1.03572275]
[1735697939553,0.25894274,711.45,710.23,1.03572275]
[1735697939755,1.46871076,711.49,710.23,1.03572275]
[1735697940251,1.46871076,711.49,710.38,1.03572275]
[1735697940856,0.2589797,711.48,710.25,1.03572275]
[1735697941757,0.28110812,711.47,710.17,1.03572275]
[1735697941954,0.25901856,711.46,710.17,1.03572275]
[1735697942758,0.2590187,711.45,710.16,1.03572275]
[1735697942954,0.2590187,711.44,710.16,1.03572275]
[1735697943155,0.28110812,711.47,710.16,1.03572275]
[1735697943156,0.28112393,711.43,710.16,1.03572275]
[1735697943352,0.2590187,711.42,710.16,1.03572275]
[1735697943953,0.2590187,711.42,710.23,1.03572275]
[1735697944659,0.28112393,711.43,710.23,1.03572275]
[1735697944660,0.25901009,711.41,710.23,1.03572275]
[1735697944852,0.25901009,711.4,710.23,1.03572275]
[1735697945059,0.25901009,711.39,710.25,1.03572275]
[1735697945260,0.25901009,711.38,710.25,1.03572275]
[1735697945562,0.25901009,711.37,710.25,1.03572275]
[1735697945761,0.25901009,711.36,710.25,1.03572275]
[1735697946060,0.25901009,711.35,710.28,1.03572275]
[1735697946259,0.25901009,711.34,710.28,1.03572275]
[1735697946461,0.25901009,711.33,710.28,1.03572275]
[1735697946759,0.25901009,711.32,710.28,1.03572275]
[1735697946953,0.25901009,711.31,710.28,1.03572275]
[1735697947158,0.25899771,711.3,710.28,1.03572275]
[1735697947354,0.25899771,711.29,710.28,1.03572275]
[1735697947561,0.25899771,711.28,710.28,1.03572275]
[1735697947762,0.25899771,711.27,710.35,1.03572275]
[1735697947962,0.25899771,711.26,710.35,1.03572275]
[1735697948162,0.25899771,711.25,710.35,1.03572275]
[1735697948458,0.25899528,711.24,710.35,1.03572275]
[1735697948655,0.25899528,711.23,710.35,1.03572275]
[1735697948860,0.25899528,711.22,710.35,1.03572275]
[1735697949057,0.25899528,711.21,710.35,1.03572275]
[1735697949262,0.25899528,711.2,710.35,1.03572275]
[1735697949462,0.25899528,711.19,710.35,1.03572275]
[1735697949660,0.25899528,711.18,710.35,1.03572275]
[1735697949860,0.25899886,711.17,710.35,1.03572275]
[1735697950061,1.46884508,711.33,710.32,1.03572275]
[1735697950062,0.25899886,711.16,710.32,1.03572275]
[1735697950262,0.25899886,711.15,710.32,1.03572275]
[1735697950562,0.25899873,711.14,710.32,1.03572275]
[1735697950762,0.25899873,711.13,710.32,1.03572275]
[1735697951063,0.25899873,711.12,710.32,1.03572275]
[1735697951262,0.25899873,711.11,710.32,1.03572275]
[1735697951462,1.46884508,711.33,710.33,1.03572275]
[1735697951662,0.25901313,711.32,710.33,1.03572275]
[1735697952560,0.25901313,711.32,710.03,1.05575805]
[1735697952561,0.25901313,711.32,710.25,1.03572275]
[1735697953661,0.25901313,711.32,710.27,1.03572275]
[1735697954661,0.25901313,711.32,710.3,1.03572275]
[1735697956060,0.25901313,711.32,710.31,1.03572275]
[1735697956959,0.25901313,711.32,710.02,0.78438429]
[1735697956960,0.25901313,711.32,710.32,1.03572275]
[1735697957861,1.46884508,711.33,710.36,1.03572275]
[1735697957862,0.25899375,711.31,710.36,1.03572275]
[1735697958063,0.25899375,711.3,710.36,1.03572275]
[1735697958367,0.25899375,711.29,710.36,1.03572275]
[1735697958565,0.25899011,711.28,710.36,1.03572275]
[1735697958764,0.25899011,711.27,710.37,1.03572275]
[1735697958959,0.25899011,711.26,710.37,1.03572275]
[1735697959165,0.25899011,711.25,710.37,1.03572275]
[1735697959369,0.25899011,711.24,710.37,1.03572275]
[1735697959567,0.25899011,711.23,710.37,1.03572275]
[1735697959769,0.25899011,711.22,710.36,1.03572275]
[1735697960066,0.25899011,711.21,710.36,1.03572275]
[1735697960260,0.25899011,711.32,710.36,1.03572275]
[1735697960465,1.46884508,711.33,710.36,1.03572275]
[1735697960766,0.25899869,711.32,710.29,1.03572275]